Cogmind - Beta 13 @@@ ROGUE MODE // 2024.02.27 @ 07:32:06 Player: Takagiro Result: Destroyed by Y-45 Defender with Beam Rifle Performance ------------- Evolutions (2) 1000 Regions Visited (6) 1200 Robots Destroyed (42) 210 Value Destroyed (1159) 1159 Prototype IDs (0) 0 Alien Tech Used (0) 0 Bonus (200) 200 TOTAL SCORE: 3769 Bonus ------- Entered Garrisons 200 Cogmind --------- Core Integrity 0/550 Matter 245/300 Energy 100/100 System Corruption 0% Temperature Cool (9) Movement Core (400) Ox7 Location -8/Garrison Parts ------- > --- POWER (1) -------- (None) > --- PROPULSION (2) --- (None) > --- UTILITY (6) ------ Large Storage Unit Signal Interpreter > --- WEAPON (2) ------- Heavy Mace > --- INVENTORY (15) --- Improved Ion Engine Light Nuclear Core Light Treads Light Treads Aluminum Leg Aluminum Leg Aluminum Leg Aluminum Leg Large Storage Unit Large Storage Unit Light Assault Rifle Enhanced Autogun Hammer Heavy Mace Peak State ------------ > --- POWER ------------ Improved Ion Engine > --- PROPULSION ------- Aluminum Leg Aluminum Leg > --- UTILITY ---------- Heat Sink Improved Heat Sink Large Storage Unit Signal Interpreter Long-range Tractor Beam > --- WEAPON ----------- Heavy EM Pulse Gun Improved Light Cannon > --- INVENTORY -------- Light Ion Engine Light Treads Advanced Treads Aluminum Leg Aluminum Leg Aluminum Leg Large Storage Unit Large Storage Unit Improved Light Cannon Grenade Launcher Grenade Launcher Hammer Heavy Mace Heavy Mace [Rating: 19] Favorites ----------- Power Light Ion Engine Engine Light Ion Engine Propulsion Aluminum Leg Treads Light Treads Leg Aluminum Leg Wheel Compact Wheel Utility Signal Interpreter Device Heat Sink Storage Large Storage Unit Processor Signal Interpreter Protection Light Armor Plating Weapon Heavy Mace Energy Gun Heavy EM Pulse Gun Ballistic Cannon Improved Light Cannon Launcher Grenade Launcher Impact Weapon Heavy Mace Build | -11 -10 -9 -9 -8 -8 -8 ------- Run | Yrd Mat Mat Min Mat Sto Gar Slots Evolved 4 | . . 2 . 2 . . Power . | . . . . . . . Propulsion . | . . . . . . . Utility 4 | . . 2 . 2 . . Weapon . | . . . . . . . Parts Attached 32 | 6 1 10 . 11 2 2 Power 6 | 1 . 2 . 2 1 . Engine 6 | 1 . 2 . 2 1 . Core . | . . . . . . . Reactor . | . . . . . . . Propulsion 7 | 2 . 3 . 2 . . Treads 2 | . . . . 2 . . Leg 3 | . . 3 . . . . Wheel 2 | 2 . . . . . . Hover . | . . . . . . . Flight . | . . . . . . . Utility 9 | 1 1 2 . 4 . 1 Device 3 | . . 1 . 2 . . Storage 2 | 1 . . . 1 . . Processor 1 | . 1 . . . . . Hackware . | . . . . . . . Protection 3 | . . 1 . 1 . 1 Artifact . | . . . . . . . Weapon 10 | 2 . 3 . 3 1 1 Energy Gun 3 | 2 . 1 . . . . Energy Cannon . | . . . . . . . Ballistic Gun . | . . . . . . . Ballistic Cannon 2 | . . 1 . 1 . . Launcher 2 | . . . . . 1 1 Special Weapon . | . . . . . . . Impact Weapon 3 | . . 1 . 2 . . Slashing Weapon . | . . . . . . . Piercing Weapon . | . . . . . . . Special Melee Weapon . | . . . . . . . Unidentified Prototypes . | . . . . . . . Parts Lost 24 | . . 7 . 9 1 7 Power 4 | . . 1 . 1 1 1 Propulsion 7 | . . 3 . 2 . 2 Utility 6 | . . 1 . 3 . 2 Weapon 7 | . . 2 . 3 . 2 Highest Loss Streak 4 | . . 3 . 3 1 4 To Critical Strikes . | . . . . . . . Average Slot Usage (%) 72 | . 97 71 88 75 61 63 Engine 9 | . 14 11 11 8 7 8 Treads 4 | . . . . 2 18 9 Leg 6 | . . 7 22 10 . . Wheel 3 | . 28 6 . . . . Device 8 | . . . 11 19 9 1 Storage 9 | . 14 11 11 9 9 9 Processor 9 | . 11 11 11 9 9 9 Protection 2 | . . 2 . . . 6 Energy Gun 7 | . 28 13 11 5 . . Ballistic Cannon 4 | . . 7 11 5 . . Launcher 2 | . . . . . . 8 Impact Weapon 4 | . . . . 3 9 9 Naked Turns . | . . . . . . . Heaviest Build 39 | 13 13 23 20 39 27 32 Greatest Support 42 | 26 26 26 20 42 42 42 Greatest Overweight (x) 9 | 2 . 4 . 9 . 1 Average Overweight (x) . | . . 1 . . . . Largest Inventory Capacity 15 | 8 8 8 8 15 15 15 Average Capacity 12 | 7 8 8 8 13 15 15 Most Carried 15 | 6 8 8 7 15 14 15 Average Carried 11 | 4 7 7 7 12 13 14 Final Capacity 15 | 8 8 8 8 15 15 15 Final Carried 14 | 6 8 7 7 14 12 14 Class Distribution -------------------- 98% | Mutant Dominant Class ---------------- Mutant | -10/Materials Mutant | -9/Materials Mutant | -9/Mines Mutant | -8/Materials Mutant | -8/Storage Mutant | -8/Garrison Resources | -11 -10 -9 -9 -8 -8 -8 ----------- Run | Yrd Mat Mat Min Mat Sto Gar Matter Collected 692 | 230 . 167 26 159 55 55 Remotely 143 | . . . . 143 . . Salvage Created 1275 | . 38 509 . 451 85 192 Parts 86 | . 1 43 . 24 . 18 Haulers Intercepted 2 | . . 1 . 1 . . Recyclers Shooed . | . . . . . . . Parts Field Recycled . | . . . . . . . Retrieved Matter . | . . . . . . . Parts Self-Destructed . | . . . . . . . Prevented . | . . . . . . . Kills | -11 -10 -9 -9 -8 -8 -8 ------- Run | Yrd Mat Mat Min Mat Sto Gar Combat Hostiles Destroyed 33 | . 1 10 . 11 2 9 Melee 3 | . . . . 3 . . Guns 4 | . 1 3 . . . . Cannons 11 | . . 6 . 5 . . AOE 10 | . . . . 2 . 8 Classes Destroyed 8 | . 1 5 . 2 . . Worker 1 | . . 1 . . . . Builder 2 | . . 1 . 1 . . Hauler 2 | . . 1 . 1 . . Recycler 1 | . . . . 1 . . Watcher 3 | . . 1 . 2 . . Swarmer 10 | . . . . 6 . 4 Grunt 14 | . 1 6 . 5 . 2 Sentry 9 | . . 4 . . 2 3 Best Kill Streak 6 | . 1 3 . 6 1 3 Combat Bots Only 4 | . 1 3 . 4 2 3 Max Kills in Single Turn 3 | . 1 2 . 2 1 3 Gunslinging . | . . . . . . . Exploded 3 | . . . . 2 . 3 Melee 1 | . . . . 1 . . Uniques/NPCs Destroyed . | . . . . . . . Combat | -11 -10 -9 -9 -8 -8 -8 -------- Run | Yrd Mat Mat Min Mat Sto Gar Hostile Shots Fired 278 | . 3 97 . 101 22 55 Missed 79 | . 2 31 . 29 8 9 Damage Taken 2833 | . 11 854 . 977 205 786 Core 747 | . . 193 . 236 76 242 Absorbed by Shields . | . . . . . . . Core Remaining (%) 83 | 100 100 . 51 . . . Volleys Fired 100 | . 3 53 . 33 . 11 Largest 2 | . 2 2 . 2 . 1 Hottest 90 | . 90 90 . 84 . 30 Shots Fired 155 | . 6 87 . 51 . 11 Gun 91 | . 6 65 . 20 . . Cannon 53 | . . 22 . 31 . . Launcher 11 | . . . . . . 11 Special . | . . . . . . . Kinetic 53 | . . 22 . 31 . . Thermal 63 | . 6 57 . . . . Explosive 11 | . . . . . . 11 Electromagnetic 28 | . . 8 . 20 . . Robot Hit Streak 13 | . 2 13 . 10 . 8 Robot Miss Streak 5 | . 2 5 . 4 . . Penetration Max . | . . . . . . . Secondary Targets 1 | . . 1 . . . . Max Gunslinging Chain 1 | . . 1 . . . . Shots Hit Robots 119 | . 3 56 . 38 10 12 Core Hits 62 | . 2 20 . 20 1 19 Critical Kills . | . . . . . . . Critical Parts Destroyed 2 | . . . . . 2 . Critical Strikes 6 | . 2 1 . 1 2 . Burn 3 | . 2 1 . . . . Blast 1 | . . . . 1 . . Smash 2 | . . . . . 2 . Melee Attacks 33 | . . . . 16 12 5 Impact 33 | . . . . 16 12 5 Slashing . | . . . . . . . Piercing . | . . . . . . . Sneak Attacks . | . . . . . . . Combat Hostiles . | . . . . . . . Follow-up Attacks 2 | . . . . 2 . . Damage Inflicted 3186 | . 36 889 . 1156 307 798 Guns 766 | . 36 526 . 204 . . Cannons 712 | . . 363 . 349 . . Explosions 838 | . . . . 266 . 572 Melee 870 | . . . . 337 307 226 Ramming . | . . . . . . . Kinetic 712 | . . 363 . 349 . . Thermal 755 | . 36 453 . 266 . . Explosive 572 | . . . . . . 572 Electromagnetic 277 | . . 73 . 204 . . Impact 870 | . . . . 337 307 226 Slashing . | . . . . . . . Piercing . | . . . . . . . Highest Corruption . | . . . . . . . Average Corruption . | . . . . . . . Corruption Purged . | . . . . . . . Corruption Blocked . | . . . . . . . Overload Shots . | . . . . . . . Overflow Damage 200 | . . . . 66 89 45 Projectiles 12 | . . . . 12 . . Explosions 22 | . . . . 1 . 21 Melee 166 | . . . . 53 89 24 Knockbacks 8 | . . 2 . 6 . . Impact 1 | . . . . 1 . . Kinetic 7 | . . 2 . 5 . . Secondary . | . . . . . . . Self-Inflicted Damage 218 | . . . . 56 . 162 Shots 7 | . . . . 1 . 6 Rammed . | . . . . . . . Targets Rammed 1 | . . . 1 . . . Kicked 1 | . . . 1 . . . Crushed . | . . . . . . . Highest Temperature 235 | . 116 235 . 19 . 15 Average Temperature 81 | . 69 88 . 9 . 6 Received Heat Transfer 831 | . 6 330 . 288 36 171 Effects 3 | . . 3 . . . . Energy Bleed 2 | . . 2 . . . . Interference 1 | . . 1 . . . . Siege Activations . | . . . . . . . Robots Corrupted . | . . . . . . . Combat Hostiles . | . . . . . . . Parts Fried 4 | . . . . 1 2 1 Impact Corruptions 9 | . . . . 4 3 2 Robots Melted 1 | . . 1 . . . . Combat Hostiles 1 | . . 1 . . . . Parts Melted 4 | . 1 3 . . . . Heat Transferred 1755 | . 247 1158 . 350 . . Parts Sabotaged . | . . . . . . . Parts Stolen . | . . . . . . . Parts Stripped . | . . . . . . . Power Chain Reactions 3 | . . . . 3 . . Alert | -11 -10 -9 -9 -8 -8 -8 ------- Run | Yrd Mat Mat Min Mat Sto Gar Peak Influence 392 | . 60 325 122 322 200 392 Initial 131 | . . 25 122 47 131 130 Average 174 | . 8 166 122 177 152 245 Maximum Alert Level 1 | . . 1 . 1 1 1 Low Security (%) 54 | 100 100 61 100 56 98 16 Level 1 45 | . . 38 . 43 1 83 Level 2 . | . . . . . . . Level 3 . | . . . . . . . Level 4 . | . . . . . . . Level 5 . | . . . . . . . High Security . | . . . . . . . Max Security . | . . . . . . . Squads Dispatched 6 | . 1 2 . 2 1 . Investigation 1 | . . 1 . . . . Extermination . | . . . . . . . Reinforcement 4 | . 1 1 . 2 . . Assault . | . . . . . . . Garrison 1 | . . . . . 1 . Intercept . | . . . . . . . Searches Triggered . | . . . . . . . Construction Impeded . | . . . . . . . Haulers Reinforced . | . . . . . . . Active Scanning Responses . | . . . . . . . Cargo Convoy Interrupts . | . . . . . . . Stealth | -11 -10 -9 -9 -8 -8 -8 --------- Run | Yrd Mat Mat Min Mat Sto Gar Distress Signals 6 | . . 3 . 3 . . Communications Jammed . | . . . . . . . Distress Signals . | . . . . . . . Times Spotted 66 | . 3 16 . 32 3 12 Peak Tracking Total 6 | . 2 3 . 6 4 5 Tactical Retreats 6 | . . . . 6 . . Traps | -11 -10 -9 -9 -8 -8 -8 ------- Run | Yrd Mat Mat Min Mat Sto Gar Traps Triggered 1 | . . 1 . . . . Indirectly . | . . . . . . . Trap Hack Attempts . | . . . . . . . Triggered . | . . . . . . . Disarmed . | . . . . . . . Reprogrammed . | . . . . . . . Reused . | . . . . . . . Traps Extracted . | . . . . . . . Installed . | . . . . . . . Triggered . | . . . . . . . Machines | -11 -10 -9 -9 -8 -8 -8 ---------- Run | Yrd Mat Mat Min Mat Sto Gar Machines Disabled . | . . . . . . . Max in Single Turn . | . . . . . . . Machines Repaired . | . . . . . . . Machines Dismantled . | . . . . . . . Machines Sabotaged . | . . . . . . . Overloaded Fab Kills . | . . . . . . . Hacking | -11 -10 -9 -9 -8 -8 -8 --------- Run | Yrd Mat Mat Min Mat Sto Gar Machines Accessed 4 | . . . . 2 1 1 Terminals 1 | . . . . . . 1 Fabricators . | . . . . . . . Repair Stations . | . . . . . . . Recycling Units 1 | . . . . 1 . . Scanalyzers 1 | . . . . 1 . . Garrison Access 1 | . . . . . 1 . Total Hacks 10 | . . . . 4 3 3 Successful 5 | . . . . 4 1 . Failed 5 | . . . . . 2 3 Catastrophic 1 | . . . . . . 1 Database Lockouts . | . . . . . . . Manual . | . . . . . . . Terminals 3 | . . . . . . 3 Fabricators . | . . . . . . . Repair Stations . | . . . . . . . Recycling Units 2 | . . . . 2 . . Scanalyzers 2 | . . . . 2 . . Garrison Access 3 | . . . . . 3 . Terminal Hacks . | . . . . . . . Fabricator Hacks . | . . . . . . . Repair Station Hacks . | . . . . . . . Recycling Unit Hacks 2 | . . . . 2 . . Retrieve Components 2 | . . . . 2 . . Scanalyzer 2 | . . . . 2 . . Insert Component 1 | . . . . 1 . . Analyze 1 | . . . . 1 . . Garrison Access Hacks 1 | . . . . . 1 . Unlock Access 1 | . . . . . 1 . Unauthorized Hacks . | . . . . . . . Terminals . | . . . . . . . Fabricators . | . . . . . . . Repair Stations . | . . . . . . . Recycling Units . | . . . . . . . Scanalyzers . | . . . . . . . Garrison Access . | . . . . . . . Data Cores Recovered . | . . . . . . . Used . | . . . . . . . Hacking Detections 3 | . . . . 1 1 1 Full Trace Events 1 | . . . . . . 1 Feedback Events . | . . . . . . . Feedback Blocked . | . . . . . . . Robot Schematics Acquired . | . . . . . . . Robots Built . | . . . . . . . Authchips . | . . . . . . . Time . | . . . . . . . Total Robot Build Rating . | . . . . . . . Part Schematics Acquired 1 | . . . . 1 . . Parts Built . | . . . . . . . Authchips . | . . . . . . . Time . | . . . . . . . Total Part Build Rating . | . . . . . . . Parts Repaired . | . . . . . . . Time . | . . . . . . . Parts Recycled . | . . . . . . . Recycled Matter . | . . . . . . . Retrieved Matter . | . . . . . . . Retrieved Components 10 | . . . . 10 . . Parts Scanalyzed 1 | . . . . 1 . . Part Schematics Acquired 1 | . . . . 1 . . Parts Damaged . | . . . . . . . Bothacking | -11 -10 -9 -9 -8 -8 -8 ------------ Run | Yrd Mat Mat Min Mat Sto Gar Used RIF Installer . | . . . . . . . Robots Hacked . | . . . . . . . Non-combat . | . . . . . . . Combat . | . . . . . . . Robot Hacks Applied . | . . . . . . . Relay Couplers Released . | . . . . . . . Fabnet Peak Effective % . | . . . . . . . Robots Rewired . | . . . . . . . Allies Hacked . | . . . . . . . Hacks Repelled . | . . . . . . . Allies | -11 -10 -9 -9 -8 -8 -8 -------- Run | Yrd Mat Mat Min Mat Sto Gar Total Allies . | . . . . . . . Largest Group . | . . . . . . . Highest-Rated Group . | . . . . . . . Highest-Rated Ally . | . . . . . . . Total Orders . | . . . . . . . Ally Attacks . | . . . . . . . Total Damage . | . . . . . . . Kills . | . . . . . . . Allies Corrupted . | . . . . . . . Allies Melted . | . . . . . . . Intel | -11 -10 -9 -9 -8 -8 -8 ------- Run | Yrd Mat Mat Min Mat Sto Gar Robot Analysis Total . | . . . . . . . Derelict Logs Recovered . | . . . . . . . Drone Launches . | . . . . . . . Drone Recoveries . | . . . . . . . Exploration | -11 -10 -9 -9 -8 -8 -8 ------------- Run | Yrd Mat Mat Min Mat Sto Gar Turns Passed 1765 | 56 103 364 33 678 83 448 Spaces Moved 748 | 45 95 125 27 247 31 178 Core 56 | 14 . 40 . 2 . . Treads 271 | . . . . 62 31 178 Legs 254 | . . 44 27 183 . . Wheels 167 | 31 95 41 . . . . Hover . | . . . . . . . Flight . | . . . . . . . Fastest Speed 50 | 50 90 90 120 120 152 152 Average Speed 172 | 84 90 162 120 193 152 228 Slowest Speed 500 | 150 90 250 120 500 152 240 Overloaded Moves . | . . . . . . . Propulsion Burnouts . | . . . . . . . Robots Hopped . | . . . . . . . Cave-ins Triggered . | . . . . . . . Exploration Rate (%) 16 | 3 24 16 17 23 8 26 Regions Visited 6 Branch Regions 2 Pre-discovered Areas . | . . . . . . . Known Exits Taken 5 | . 1 1 1 1 1 . Unknown Exits Taken 1 | 1 . . . . . . Scrap Searched 1 | . . . 1 . . . Spaces Dug . | . . . . . . . Terrain Destroyed 29 | . . 1 . 9 . 19 Melee . | . . . . . . . Projectile 3 | . . 1 . 2 . . AOE 26 | . . . . 7 . 19 Terrain Rammed . | . . . . . . . Walls Destroyed . | . . . . . . . Machines Disabled . | . . . . . . . Actions | -11 -10 -9 -9 -8 -8 -8 --------- Run | Yrd Mat Mat Min Mat Sto Gar Total 1011 | 62 106 199 27 372 45 200 Wait 50 | . 5 1 . 44 . . Move 743 | 44 94 124 26 246 31 178 Hop . | . . . . . . . Pick Up 45 | 12 3 7 . 19 . 4 Fast Attach 3 | . . 3 . . . . Attach 24 | 6 1 5 . 8 2 2 Detach . | . . . . . . . Swap 5 | . . 2 . 3 . . Drop 9 | . . 4 . 5 . . Fire 100 | . 3 53 . 33 . 11 Melee 31 | . . . . 14 12 5 Ram . | . . . . . . . Kick 1 | . . . 1 . . . Crush . | . . . . . . . Escape Stasis . | . . . . . . . Rewire . | . . . . . . . Trap . | . . . . . . . Miscellaneous . | . . . . . . . Route ------- -11/Scrapyard -10/Materials -9/Materials -9/Mines -8/Materials -8/Storage -8/Garrison History --------- Turn | Location | Event 15 | -11/Scrapyard | Discovered new exit (range 15) 57 | -11/Scrapyard | Entered Materials 147 | -10/Materials | Discovered new exit (range 5) 159 | -10/Materials | Identified exit to Materials 160 | -10/Materials | Entered another Materials area 160 | -9/Materials | Evolved 2 slots: Utility x2 301 | -9/Materials | Lost 3 parts (2n1w) 304 | -9/Materials | Build established: Mutant 487 | -9/Materials | Discovered new exit (range 15) 518 | -9/Materials | Identified exit to Mines 524 | -9/Materials | Entered Mines 545 | -9/Mines | Discovered new exit (range 10) 556 | -9/Mines | Identified exit to Materials 557 | -9/Mines | Entered Materials 557 | -8/Materials | Evolved 2 slots: Utility x2 1100 | -8/Materials | Lost 3 parts (1p1n1u) 1229 | -8/Materials | Discovered new exit (range 5) 1233 | -8/Materials | Identified exit to Storage 1235 | -8/Materials | Entered Storage 1289 | -8/Storage | Core integrity fell below 50% 1290 | -8/Storage | Garrison activated, responded to threat 1317 | -8/Storage | Identified exit to Garrison 1318 | -8/Storage | Entered Garrison 1352 | -8/Garrison | Triggered checkpoint 1726 | -8/Garrison | Triggered checkpoint 1728 | -8/Garrison | Triggered checkpoint 1754 | -8/Garrison | Triggered checkpoint 1758 | -8/Garrison | Core integrity fell below 20% 1766 | -8/Garrison | Destroyed by Y-45 Defender with Beam Rifle Last Messages --------------- Beams of light sweep through the air. An alarm sounds. Grenade Launcher destroyed. Destroyed Flight Unit. S-10 Pest system corrupted by crushing effect. S-10 Pest misfires. Beams of light sweep through the air. An alarm sounds. Destroyed Lgt. Ion Engine. S-10 Pest destroyed. Penetrated by Slug. Y-45 Defender destroyed. Penetrated by Slug. Lgt. Ion Engine destroyed. Lgt. Armor Plating destroyed. Penetrated by Slug. Grenade Launcher destroyed. Destroyed Grenade Launcher. Penetrated by Slug. Lgt. Treads destroyed. Map ----- +----------------------------------------------------+ | ?????????????????????????????????????????????????? | | ?????????????????????????????????????????????????? | | ?????????????????????????????????????????????????? | | ?????????????????????????????????????????????????? | | ?????????????????????????????????????????????????? | | ?????????????????????????????????????????????????? | | ?????????????????????????????????????????????????? | | ?????????????????????????????????????????????????? | | ??????????????????????? ?? ??? ?????????????? | | ??????????????????????# ?# ## ##???????????? | | ??????????????????????# #???????????? | | ??????????????????????# ? #???????????? | | ??????????????????????# ? #???????????? | | ??????????????????????# ?# ## #???????????? | | ?????????????????????## ## ## #???????????? | | ????????????????????? h "???????????? | | ????????????????????? "???????????? | | ?????????????????????? "?###???????? | | ?????????????????????? "?# ####????? | | ??????????????????????# ## ## ### #????? | | ???????????????????#### ^^^## ## = ###### | | ???????????????????? [%% | | ????????????????????? h!% [ ## | | ??????????????????????# * #? | | ??????????????????????# Y #==[ ############# #? | | ??????????????????????# @ #%[%=#???????????# #? | | ??????????????????????# #*## #??????????## #? | | ??????????????????????# ## #? ?????????#T #? | | ??????????????????????# # #??## ????????## ## | | ??????????????????????# ####????? #???????# ## | | ??????????????????????# #?????????#???????# ## | | ??????????????????????# #?????????????????# | | ?????????????????????? #?????????????????# | | ?????????????????????? #?????????????????# ## | | ????????????????????? ??????????????????# #? | | ?????????????????????#####??????????????????# #? | | ????????????????????????????????????????????# #? | | ????????????????????????????????????????????# #? | | ????????????????????????????????????????????# #? | | ???????????????????????????????????????????## ## | | ???????????????????????????????????????????# # | | ???????????????????????????????????????????# ## | | ???????????????????????????????????????????# # | | ???????????????????????????????????????????## ## | | ???????????????????????????????????????????## #? | | ???????????????????????????????????????????## #? | | ????????????????????????????????????????????# #? | | ????????????????????????????????????????????# #? | | ????????????????????????????????????????????# #? | | ????????????????????????????????????????????# #? | +----------------------------------------------------+ Best States ------------- Heat Dissipation 55 Energy Generation 12 Energy Capacity 265 Matter Stores 300 Matter Capacity 300 Sight Range 16 Terrain Scan Density 10 Armor Coverage 150 Evasion (%) 55 Recoil Reduction 2 Item Schematics ----------------- Lgt. Armor Plating | -8/Materials | Scanalyzed Robot Schematics ------------------ None Fabricated ------------ Nothing Alien Tech Used ----------------- None Achievements -------------- None Challenges ------------ None Game ------ Seed XenonLargeStorage Manual? 0 Play Time 00:21:09 Cumulative 15.1 hours Start 2024.02.27 @ 07:00:10 End 2024.02.27 @ 07:32:06 Sessions 3 Manual Loads 0 Difficulty Rogue Special Mode None Game No. 31 Rogue 18 Adventurer 13 Explorer 0 Win Type - Total 0 Types 0/0/0/0/0/0/0/0/0 Lore% 12 Gallery% 18 Achievement% 14 Wizard Run 0 Options --------- Layout 2 ASCII 0 Keyboard 0 Movement Mouse Keybinds 0 Fullscreen 1 Font 24/Smallcaps Map View 50x44 Zoom Use 0% Tactical HUD 0 Map Filters NONE Filters NONE Steam 1 RUN: 30d48a6c-ddf4-442c-a3e2-9eea1eb80380